[Event "*** Titled Tuesday 3|2 Blitz"]
[Site "Chess.com"]
[Date "2016.03.01"]
[Round "4"]
[White "Izoria123"]
[Black "kleinebeer98"]
[Result "1-0"]
[WhiteElo "2553"]
[BlackElo "2499"]
[TimeControl "180+2"]
[EndTime "12:21:49 PST"]
[Termination "Izoria123 won by resignation"]

1. e4 {[%clk 0:03:01.9]} 1... c5 {[%clk 0:03:00.2]} 2. Nf3 {[%clk 0:03:02.3]}
2... d6 {[%clk 0:02:59.4]} 3. c3 {[%clk 0:03:00.5]} 3... Nf6 {[%clk 0:02:59.9]}
4. Be2 {[%clk 0:03:01.3]} 4... g6 {[%clk 0:02:58.9]} 5. O-O {[%clk 0:03:02]}
5... Bg7 {[%clk 0:03:00.1]} 6. Bb5+ {[%clk 0:03:02.4]} 6... Bd7 {[%clk
0:02:51.7]} 7. Bxd7+ {[%clk 0:03:02.5]} 7... Nbxd7 {[%clk 0:02:53.6]} 8. Re1
{[%clk 0:03:04]} 8... O-O {[%clk 0:02:52.8]} 9. d4 {[%clk 0:03:04.8]} 9... cxd4
{[%clk 0:02:43.1]} 10. cxd4 {[%clk 0:03:05.5]} 10... Rc8 {[%clk 0:02:40.9]} 11.
Nc3 {[%clk 0:03:05.9]} 11... Nb6 {[%clk 0:02:38.3]} 12. Qb3 {[%clk 0:02:54.3]}
12... Nfd7 {[%clk 0:02:18.3]} 13. a4 {[%clk 0:02:41.9]} 13... e5 {[%clk
0:02:11.8]} 14. Bg5 {[%clk 0:02:25.2]} 14... Bf6 {[%clk 0:02:02.3]} 15. Bxf6
{[%clk 0:02:25.6]} 15... Qxf6 {[%clk 0:02:04.2]} 16. a5 {[%clk 0:02:25.7]} 16...
exd4 {[%clk 0:02:05]} 17. e5 {[%clk 0:02:20.2]} 17... Qg7 {[%clk 0:01:26.6]} 18.
Ne4 {[%clk 0:01:54.2]} 18... Nc4 {[%clk 0:01:08.4]} 19. exd6 {[%clk 0:01:54.3]}
19... b6 {[%clk 0:00:45.2]} 20. axb6 {[%clk 0:01:43.5]} 20... axb6 {[%clk
0:00:47.1]} 21. Ra7 {[%clk 0:01:40.2]} 21... Rfd8 {[%clk 0:00:48.3]} 22. h3
{[%clk 0:01:37.3]} 22... Nce5 {[%clk 0:00:30.4]} 23. Neg5 {[%clk 0:01:23.1]}
23... Nxf3+ {[%clk 0:00:28.9]} 24. Nxf3 {[%clk 0:01:22.9]} 24... Nc5 {[%clk
0:00:29]} 25. Qd5 {[%clk 0:01:22.7]} 25... Qf6 {[%clk 0:00:22.4]} 26. d7 {[%clk
0:01:22.9]} 26... Rb8 {[%clk 0:00:21.4]} 27. Nxd4 {[%clk 0:01:18.6]} 27... Nd3
{[%clk 0:00:21]} 28. Rd1 {[%clk 0:01:11.9]} 28... Qxf2+ {[%clk 0:00:20.3]} 29.
Kh1 {[%clk 0:01:12]} 29... Qe3 {[%clk 0:00:18.7]} 30. Rf1 {[%clk 0:01:08.4]}
30... Nf2+ {[%clk 0:00:17.5]} 31. Kh2 {[%clk 0:01:09.7]} 31... Ng4+ {[%clk
0:00:11.5]} 32. hxg4 {[%clk 0:01:08.7]} 32... Qh6+ {[%clk 0:00:13]} 33. Kg3
{[%clk 0:01:09.9]} 33... Qe3+ {[%clk 0:00:14]} 34. Rf3 {[%clk 0:01:11.2]} 34...
Qe1+ {[%clk 0:00:15.1]} 35. Kh2 {[%clk 0:01:10.6]} 35... Qh4+ {[%clk 0:00:16.5]}
36. Rh3 {[%clk 0:01:11.8]} 36... Qf6 {[%clk 0:00:17.7]} 37. Nc6 {[%clk
0:01:11.8]} 37... Qf4+ {[%clk 0:00:18.8]} 38. Rg3 {[%clk 0:01:13]} 38... Qh6+
{[%clk 0:00:20.1]} 39. Rh3 {[%clk 0:01:11.3]} 39... Qf4+ {[%clk 0:00:21.2]} 40.
Rg3 {[%clk 0:01:12.7]} 40... Qh6+ {[%clk 0:00:22.2]} 41. Kg1 {[%clk 0:01:13]}
41... Qc1+ {[%clk 0:00:23.3]} 42. Kf2 {[%clk 0:01:12.5]} 42... Qxb2+ {[%clk
0:00:24.6]} 43. Kf3 {[%clk 0:01:12.3]} 43... Qc3+ {[%clk 0:00:24.6]} 44. Kf2
{[%clk 0:01:12.1]} 44... Qb2+ {[%clk 0:00:25.7]} 45. Ke1 {[%clk 0:01:09.9]}
45... Qc1+ {[%clk 0:00:25.6]} 46. Ke2 {[%clk 0:01:10.1]} 46... Qc2+ {[%clk
0:00:26.1]} 47. Kf1 {[%clk 0:01:10.9]} 47... Qc1+ {[%clk 0:00:27.1]} 48. Kf2
{[%clk 0:01:11.9]} 48... Qb2+ {[%clk 0:00:24.9]} 49. Kf3 {[%clk 0:01:10]} 49...
Qc3+ {[%clk 0:00:25.8]} 50. Kf4 {[%clk 0:01:10.9]} 50... Qf6+ {[%clk 0:00:27.1]}
51. Ke4 {[%clk 0:01:11.3]} 51... Re8+ {[%clk 0:00:27.6]} 52. dxe8=Q+ {[%clk
0:01:11.9]} 52... Rxe8+ {[%clk 0:00:29.5]} 53. Ne5 {[%clk 0:01:13.2]} 53... Re6
{[%clk 0:00:19.9]} 54. Rf3 {[%clk 0:01:10.2]} 54... Rxe5+ {[%clk 0:00:21.4]} 55.
Qxe5 {[%clk 0:01:11]} 55... Qc6+ {[%clk 0:00:23.3]} 56. Kf4 {[%clk 0:01:12]} 1-0

[Event "*** Titled Tuesday 3|2 Blitz"]
[Site "Chess.com"]
[Date "2016.03.01"]
[Round "4"]
[White "Boryboy"]
[Black "PowerThinking2650"]
[Result "1-0"]
[WhiteElo "2476"]
[BlackElo "2144"]
[TimeControl "180+2"]
[EndTime "12:21:57 PST"]
[Termination "Boryboy won by resignation"]

1. e4 {[%clk 0:03:01.9]} 1... e5 {[%clk 0:03:00.8]} 2. Nf3 {[%clk 0:03:00.6]}
2... Nc6 {[%clk 0:03:02.1]} 3. Nc3 {[%clk 0:03:01.9]} 3... Nf6 {[%clk
0:03:01.4]} 4. Bb5 {[%clk 0:03:03.2]} 4... Bb4 {[%clk 0:03:00.6]} 5. O-O {[%clk
0:03:03.2]} 5... O-O {[%clk 0:03:00.6]} 6. d3 {[%clk 0:03:04.3]} 6... d6 {[%clk
0:03:01.9]} 7. Bxc6 {[%clk 0:03:02.7]} 7... bxc6 {[%clk 0:03:01.7]} 8. Ne2
{[%clk 0:03:04.2]} 8... h6 {[%clk 0:02:55.7]} 9. Ng3 {[%clk 0:03:05.2]} 9... c5
{[%clk 0:02:53.9]} 10. Qe2 {[%clk 0:03:05.7]} 10... Be6 {[%clk 0:02:49.7]} 11.
h3 {[%clk 0:03:06.6]} 11... Ba5 {[%clk 0:02:48.7]} 12. Nh4 {[%clk 0:03:05.6]}
12... Rb8 {[%clk 0:02:41.4]} 13. Nhf5 {[%clk 0:03:04.9]} 13... Bxf5 {[%clk
0:02:40.2]} 14. Nxf5 {[%clk 0:03:03.7]} 14... Kh7 {[%clk 0:02:41.1]} 15. c4
{[%clk 0:02:59.8]} 15... Ng8 {[%clk 0:02:39.1]} 16. f4 {[%clk 0:03:00.5]} 16...
g6 {[%clk 0:02:39.9]} 17. Ng3 {[%clk 0:02:56.2]} 17... f6 {[%clk 0:02:36.7]} 18.
Be3 {[%clk 0:02:55.3]} 18... Qd7 {[%clk 0:02:33.3]} 19. Rf3 {[%clk 0:02:56.7]}
19... c6 {[%clk 0:02:27.2]} 20. Raf1 {[%clk 0:02:57.9]} 20... Kg7 {[%clk
0:02:22.3]} 21. Qf2 {[%clk 0:02:59]} 21... Qe7 {[%clk 0:02:12.4]} 22. h4 {[%clk
0:02:58.4]} 22... exf4 {[%clk 0:01:39]} 23. Bxf4 {[%clk 0:02:58.6]} 23... h5
{[%clk 0:01:33.4]} 24. Bc1 {[%clk 0:02:49.7]} 24... Bc7 {[%clk 0:01:32.7]} 25.
Re1 {[%clk 0:02:43.5]} 25... Ba5 {[%clk 0:01:28.2]} 26. Re2 {[%clk 0:02:43.8]}
26... Rf7 {[%clk 0:01:27.1]} 27. Nf1 {[%clk 0:02:38.4]} 27... Rbf8 {[%clk
0:01:26.6]} 28. Ne3 {[%clk 0:02:39.2]} 28... Nh6 {[%clk 0:01:24.9]} 29. Qg3
{[%clk 0:02:39.3]} 29... Kh7 {[%clk 0:01:20.1]} 30. Qf4 {[%clk 0:02:39.3]} 30...
Qe5 {[%clk 0:01:14.7]} 31. Qxe5 {[%clk 0:02:19]} 31... fxe5 {[%clk 0:01:14]} 32.
Ref2 {[%clk 0:02:06.5]} 32... Rxf3 {[%clk 0:01:12.8]} 33. Rxf3 {[%clk
0:02:07.5]} 33... Rxf3 {[%clk 0:01:12.7]} 34. gxf3 {[%clk 0:02:09.4]} 34... Bd8
{[%clk 0:01:13]} 35. Ng2 {[%clk 0:02:10.5]} 35... Nf7 {[%clk 0:01:06.7]} 36. Kf2
{[%clk 0:02:11.8]} 36... g5 {[%clk 0:01:03.9]} 37. hxg5 {[%clk 0:02:00.3]} 37...
Bxg5 {[%clk 0:00:50.4]} 38. Be3 {[%clk 0:01:53.7]} 38... Kg6 {[%clk 0:00:48.8]}
39. a4 {[%clk 0:01:49.2]} 39... h4 {[%clk 0:00:47.3]} 40. Bxg5 {[%clk 0:01:42]}
40... Kxg5 {[%clk 0:00:47.4]} 41. Ne3 {[%clk 0:01:43.5]} 41... Nh6 {[%clk
0:00:43.6]} 42. Kg2 {[%clk 0:01:34.6]} 42... Kf4 {[%clk 0:00:41.3]} 43. Nc2
{[%clk 0:01:34]} 43... h3+ {[%clk 0:00:42]} 44. Kxh3 {[%clk 0:01:35.1]} 44...
Kxf3 {[%clk 0:00:43.2]} 45. b4 {[%clk 0:01:36.8]} 45... Ke2 {[%clk 0:00:40]} 46.
b5 {[%clk 0:01:37.7]} 46... cxb5 {[%clk 0:00:21.7]} 47. cxb5 {[%clk 0:01:39.1]}
47... Nf7 {[%clk 0:00:18.4]} 48. a5 {[%clk 0:01:40.5]} 48... Nd8 {[%clk
0:00:17.5]} 49. a6 {[%clk 0:01:31.4]} 49... Ne6 {[%clk 0:00:18.3]} 50. Na3
{[%clk 0:01:30.1]} 50... Kxd3 {[%clk 0:00:18.6]} 51. b6 {[%clk 0:01:31.5]} 51...
axb6 {[%clk 0:00:19.5]} 52. Nb5 {[%clk 0:01:33.2]} 52... Kc4 {[%clk 0:00:19.3]}
53. a7 {[%clk 0:01:34.7]} 53... Kxb5 {[%clk 0:00:20.3]} 54. a8=Q {[%clk
0:01:36.3]} 54... Nd4 {[%clk 0:00:17.7]} 55. Qd5 {[%clk 0:01:36.2]} 55... Kb4
{[%clk 0:00:17.3]} 56. Qxd6 {[%clk 0:01:37.5]} 56... b5 {[%clk 0:00:18.5]} 57.
Qxe5 {[%clk 0:01:38.8]} 57... Kc4 {[%clk 0:00:19.7]} 58. Qd5+ {[%clk 0:01:39.7]}
58... Kb4 {[%clk 0:00:19.6]} 59. e5 {[%clk 0:01:40.5]} 59... Nb3 {[%clk
0:00:19.9]} 60. e6 {[%clk 0:01:41.7]} 60... c4 {[%clk 0:00:21.2]} 61. e7 {[%clk
0:01:43.3]} 61... Kc3 {[%clk 0:00:22.4]} 62. e8=Q {[%clk 0:01:44.8]} 1-0

[Event "*** Titled Tuesday 3|2 Blitz"]
[Site "Chess.com"]
[Date "2016.03.01"]
[Round "4"]
[White "VovAn1991"]
[Black "Mornar1951"]
[Result "0-1"]
[WhiteElo "2455"]
[BlackElo "2590"]
[TimeControl "180+2"]
[EndTime "12:22:25 PST"]
[Termination "Mornar1951 won on time"]

1. e4 {[%clk 0:03:01.9]} 1... c5 {[%clk 0:03:00.5]} 2. Nf3 {[%clk 0:03:02.6]}
2... e6 {[%clk 0:03:01.8]} 3. d4 {[%clk 0:03:03.7]} 3... cxd4 {[%clk 0:03:03.7]}
4. Nxd4 {[%clk 0:03:05.6]} 4... a6 {[%clk 0:03:05.3]} 5. Bd3 {[%clk 0:03:04.9]}
5... Nf6 {[%clk 0:03:05.4]} 6. O-O {[%clk 0:03:01.6]} 6... Qc7 {[%clk
0:03:06.6]} 7. Nc3 {[%clk 0:02:59.4]} 7... d6 {[%clk 0:03:06]} 8. Qe2 {[%clk
0:02:56.2]} 8... Nbd7 {[%clk 0:03:03]} 9. f4 {[%clk 0:02:55.8]} 9... Be7 {[%clk
0:03:04]} 10. Kh1 {[%clk 0:02:53.8]} 10... Nc5 {[%clk 0:03:01.6]} 11. Bd2 {[%clk
0:02:42.2]} 11... O-O {[%clk 0:02:58.1]} 12. Rae1 {[%clk 0:02:42.4]} 12... Nxd3
{[%clk 0:02:55.4]} 13. cxd3 {[%clk 0:02:44.3]} 13... b5 {[%clk 0:02:56.3]} 14.
Rc1 {[%clk 0:02:35.6]} 14... Qd7 {[%clk 0:02:56.8]} 15. f5 {[%clk 0:01:55.2]}
15... e5 {[%clk 0:02:51.5]} 16. Nc6 {[%clk 0:01:43.6]} 16... Qxc6 {[%clk
0:02:24.8]} 17. Nd5 {[%clk 0:01:44.1]} 17... Qd7 {[%clk 0:02:19.8]} 18. Rc7
{[%clk 0:01:41.2]} 18... Qd8 {[%clk 0:02:20.5]} 19. Nxe7+ {[%clk 0:01:35.5]}
19... Kh8 {[%clk 0:02:21.5]} 20. Rxc8 {[%clk 0:00:49.7]} 20... Rxc8 {[%clk
0:02:20.6]} 21. Nxc8 {[%clk 0:00:50.3]} 21... Qxc8 {[%clk 0:02:21.1]} 22. Rc1
{[%clk 0:00:51.9]} 22... Qb7 {[%clk 0:02:17.7]} 23. Bb4 {[%clk 0:00:42.4]} 23...
Rc8 {[%clk 0:02:18.5]} 24. Rxc8+ {[%clk 0:00:29.2]} 24... Qxc8 {[%clk
0:02:20.4]} 25. Qd2 {[%clk 0:00:31.1]} 25... d5 {[%clk 0:02:15.7]} 26. Qc3
{[%clk 0:00:31.3]} 26... Qxc3 {[%clk 0:02:12]} 27. Bxc3 {[%clk 0:00:33.2]} 27...
dxe4 {[%clk 0:02:13]} 28. dxe4 {[%clk 0:00:34.4]} 28... Nxe4 {[%clk 0:02:10.2]}
29. Bxe5 {[%clk 0:00:35]} 29... f6 {[%clk 0:02:08.3]} 30. Bd4 {[%clk 0:00:35.8]}
30... h5 {[%clk 0:02:04.5]} 31. g3 {[%clk 0:00:27.8]} 31... Nd6 {[%clk
0:02:04.9]} 32. Kg2 {[%clk 0:00:29.3]} 32... Nxf5 {[%clk 0:02:05.7]} 33. Bc5
{[%clk 0:00:30.9]} 33... Kg8 {[%clk 0:02:06.5]} 34. Kf3 {[%clk 0:00:31.1]} 34...
Kf7 {[%clk 0:02:07.7]} 35. Ke4 {[%clk 0:00:31.9]} 35... Ke6 {[%clk 0:02:08.9]}
36. Bf8 {[%clk 0:00:29.3]} 36... g5 {[%clk 0:02:06.4]} 37. b3 {[%clk 0:00:27.6]}
37... g4 {[%clk 0:01:58.6]} 38. a4 {[%clk 0:00:25.9]} 38... h4 {[%clk
0:01:54.4]} 39. axb5 {[%clk 0:00:17.3]} 39... hxg3 {[%clk 0:01:51.2]} 40. hxg3
{[%clk 0:00:16.6]} 40... axb5 {[%clk 0:01:50.3]} 41. Kf4 {[%clk 0:00:16.5]}
41... Nd4 {[%clk 0:01:49.5]} 42. Kxg4 {[%clk 0:00:15.5]} 42... Nxb3 {[%clk
0:01:50.5]} 43. Kf4 {[%clk 0:00:16.7]} 43... Nd4 {[%clk 0:01:39.4]} 44. g4
{[%clk 0:00:17.4]} 44... Nc6 {[%clk 0:01:20.5]} 45. g5 {[%clk 0:00:13.8]} 45...
Ne5 {[%clk 0:01:18.1]} 46. Bg7 {[%clk 0:00:09.6]} 46... Ng6+ {[%clk 0:01:17.2]}
47. Kg4 {[%clk 0:00:09.9]} 47... f5+ {[%clk 0:01:18.5]} 48. Kh5 {[%clk
0:00:10.8]} 48... Kf7 {[%clk 0:01:19.5]} 49. Bc3 {[%clk 0:00:10.6]} 49... Nf4+
{[%clk 0:01:12.6]} 50. Kh6 {[%clk 0:00:10.9]} 50... Ke6 {[%clk 0:01:01.7]} 51.
g6 {[%clk 0:00:10.4]} 51... Nxg6 {[%clk 0:01:01.4]} 52. Kxg6 {[%clk 0:00:12.3]}
52... f4 {[%clk 0:01:02.4]} 53. Kg5 {[%clk 0:00:13.4]} 53... f3 {[%clk
0:01:02.5]} 54. Be1 {[%clk 0:00:14.9]} 54... b4 {[%clk 0:01:02.1]} 55. Kf4
{[%clk 0:00:09.8]} 55... b3 {[%clk 0:01:02.4]} 0-1

[Event "*** Titled Tuesday 3|2 Blitz"]
[Site "Chess.com"]
[Date "2016.03.01"]
[Round "4"]
[White "Gevorg_Harutjunyan"]
[Black "AndreyOstrovskiy"]
[Result "0-1"]
[WhiteElo "2597"]
[BlackElo "2481"]
[TimeControl "180+2"]
[EndTime "12:22:29 PST"]
[Termination "AndreyOstrovskiy won by checkmate"]

1. e4 {[%clk 0:03:00.4]} 1... e5 {[%clk 0:03:00.7]} 2. Nf3 {[%clk 0:03:01.3]}
2... Nc6 {[%clk 0:03:02.1]} 3. d4 {[%clk 0:03:01.4]} 3... exd4 {[%clk 0:03:04]}
4. Nxd4 {[%clk 0:03:01.7]} 4... Nf6 {[%clk 0:03:05.3]} 5. Nc3 {[%clk 0:03:01.7]}
5... Bb4 {[%clk 0:03:05.4]} 6. Nxc6 {[%clk 0:03:02.6]} 6... bxc6 {[%clk
0:03:07.3]} 7. Bd3 {[%clk 0:03:03.8]} 7... d5 {[%clk 0:03:08.9]} 8. exd5 {[%clk
0:03:05.7]} 8... cxd5 {[%clk 0:03:10.7]} 9. O-O {[%clk 0:03:06.6]} 9... O-O
{[%clk 0:03:12.2]} 10. Bg5 {[%clk 0:03:04.2]} 10... c6 {[%clk 0:03:12.1]} 11.
Na4 {[%clk 0:03:04.6]} 11... Rb8 {[%clk 0:02:58.3]} 12. c3 {[%clk 0:03:01.3]}
12... Bd6 {[%clk 0:02:58.7]} 13. Re1 {[%clk 0:03:00.4]} 13... h6 {[%clk
0:02:45.1]} 14. Bh4 {[%clk 0:03:00]} 14... c5 {[%clk 0:01:54.2]} 15. Bc2 {[%clk
0:02:52.1]} 15... Bd7 {[%clk 0:01:45]} 16. Rb1 {[%clk 0:02:27]} 16... g5 {[%clk
0:01:25.5]} 17. Bg3 {[%clk 0:02:19.9]} 17... Bxg3 {[%clk 0:01:25.9]} 18. hxg3
{[%clk 0:02:19.2]} 18... Bxa4 {[%clk 0:01:05.9]} 19. Bxa4 {[%clk 0:02:21.1]}
19... Qd6 {[%clk 0:01:02.7]} 20. Qd3 {[%clk 0:02:09.1]} 20... Kg7 {[%clk
0:01:00.4]} 21. Re2 {[%clk 0:02:04.4]} 21... Rfd8 {[%clk 0:00:54.5]} 22. Rbe1
{[%clk 0:01:58.2]} 22... d4 {[%clk 0:00:51.8]} 23. c4 {[%clk 0:01:52]} 23... Rb7
{[%clk 0:00:45.8]} 24. Bc2 {[%clk 0:01:51.4]} 24... Rxb2 {[%clk 0:00:38.4]} 25.
Re6 {[%clk 0:01:52.7]} 25... Qxe6 {[%clk 0:00:30.5]} 26. Rxe6 {[%clk 0:01:52.6]}
26... Rxc2 {[%clk 0:00:29.8]} 27. Qxc2 {[%clk 0:01:43]} 27... d3 {[%clk
0:00:26.4]} 28. Qd2 {[%clk 0:01:40.7]} 28... fxe6 {[%clk 0:00:26.4]} 29. f3
{[%clk 0:01:41.4]} 29... Rd4 {[%clk 0:00:24.5]} 30. Kf2 {[%clk 0:01:41.2]} 30...
e5 {[%clk 0:00:25.7]} 31. Ke3 {[%clk 0:01:30]} 31... e4 {[%clk 0:00:24.9]} 32.
g4 {[%clk 0:00:59.7]} 32... h5 {[%clk 0:00:25.2]} 33. gxh5 {[%clk 0:01:00.3]}
33... Kh6 {[%clk 0:00:26.4]} 34. a4 {[%clk 0:00:20.8]} 34... a5 {[%clk
0:00:26.9]} 35. Kf2 {[%clk 0:00:10.5]} 35... Kxh5 {[%clk 0:00:21.6]} 36. Ke1
{[%clk 0:00:07.8]} 36... Kg6 {[%clk 0:00:21.4]} 37. Kd1 {[%clk 0:00:05.7]} 37...
exf3 {[%clk 0:00:22.5]} 38. gxf3 {[%clk 0:00:06.7]} 38... g4 {[%clk 0:00:24]}
39. fxg4 {[%clk 0:00:07.6]} 39... Ne4 {[%clk 0:00:25]} 40. Qxa5 {[%clk
0:00:07.8]} 40... d2 {[%clk 0:00:25.7]} 41. Qb6+ {[%clk 0:00:08.5]} 41... Kg5
{[%clk 0:00:27]} 42. Qb3 {[%clk 0:00:02.9]} 42... Nf2+ {[%clk 0:00:27]} 43. Ke2
{[%clk 0:00:04.5]} 43... d1=Q+ {[%clk 0:00:28.4]} 44. Qxd1 {[%clk 0:00:06.1]}
44... Nxd1 {[%clk 0:00:29.7]} 45. a5 {[%clk 0:00:07.3]} 45... Nc3+ {[%clk
0:00:30.5]} 46. Ke3 {[%clk 0:00:08.3]} 46... Rxc4 {[%clk 0:00:30.9]} 47. a6
{[%clk 0:00:10.2]} 47... Ra4 {[%clk 0:00:32]} 48. Kd3 {[%clk 0:00:12.1]} 48...
Rxa6 {[%clk 0:00:33]} 49. Kc4 {[%clk 0:00:14]} 49... Kxg4 {[%clk 0:00:34.1]} 50.
Kd3 {[%clk 0:00:14.7]} 50... Nd5 {[%clk 0:00:34.9]} 51. Kc4 {[%clk 0:00:16.1]}
51... Rc6 {[%clk 0:00:35.7]} 52. Kb5 {[%clk 0:00:17]} 52... c4 {[%clk 0:00:37]}
53. Kxc6 {[%clk 0:00:17.9]} 53... c3 {[%clk 0:00:38.5]} 54. Kc5 {[%clk
0:00:19.6]} 54... c2 {[%clk 0:00:40]} 55. Kd4 {[%clk 0:00:21.5]} 55... c1=Q
{[%clk 0:00:40.6]} 56. Kd3 {[%clk 0:00:23.4]} 56... Kf5 {[%clk 0:00:40.7]} 57.
Kd4 {[%clk 0:00:24.3]} 57... Ke6 {[%clk 0:00:42]} 58. Ke4 {[%clk 0:00:25.3]}
58... Qe3# {[%clk 0:00:42.4]} 0-1

[Event "*** Titled Tuesday 3|2 Blitz"]
[Site "Chess.com"]
[Date "2016.03.01"]
[Round "4"]
[White "AndroQueen"]
[Black "MinhGTrAn"]
[Result "1-0"]
[WhiteElo "2557"]
[BlackElo "2656"]
[TimeControl "180+2"]
[EndTime "12:22:30 PST"]
[Termination "AndroQueen won on time"]

1. d4 {[%clk 0:03:01.9]} 1... Nf6 {[%clk 0:03:01]} 2. c4 {[%clk 0:03:03]} 2...
e6 {[%clk 0:03:02.9]} 3. Nc3 {[%clk 0:03:04.2]} 3... Bb4 {[%clk 0:03:04.5]} 4.
f3 {[%clk 0:03:05.4]} 4... Nc6 {[%clk 0:03:04.8]} 5. e4 {[%clk 0:03:04.9]} 5...
e5 {[%clk 0:03:05.4]} 6. d5 {[%clk 0:03:04.6]} 6... Bxc3+ {[%clk 0:03:06.6]} 7.
bxc3 {[%clk 0:03:06.5]} 7... Na5 {[%clk 0:03:08.5]} 8. Bd3 {[%clk 0:03:05.2]}
8... b6 {[%clk 0:03:06.5]} 9. f4 {[%clk 0:02:56.9]} 9... Qe7 {[%clk 0:02:59.7]}
10. Nf3 {[%clk 0:02:49.2]} 10... d6 {[%clk 0:02:51.4]} 11. c5 {[%clk 0:02:38.3]}
11... O-O {[%clk 0:02:45.1]} 12. O-O {[%clk 0:02:24.2]} 12... Nb7 {[%clk
0:02:33.9]} 13. fxe5 {[%clk 0:02:03.6]} 13... dxe5 {[%clk 0:02:33.7]} 14. c6
{[%clk 0:02:05.1]} 14... Nc5 {[%clk 0:02:29.9]} 15. Ba3 {[%clk 0:02:04.5]} 15...
Ne8 {[%clk 0:02:24.2]} 16. Nd2 {[%clk 0:01:41.8]} 16... Nd6 {[%clk 0:02:23.8]}
17. Bxc5 {[%clk 0:01:38.7]} 17... bxc5 {[%clk 0:02:24.3]} 18. Qe2 {[%clk
0:01:37.2]} 18... f6 {[%clk 0:02:03.7]} 19. Rab1 {[%clk 0:01:29.5]} 19... a5
{[%clk 0:01:56.4]} 20. h3 {[%clk 0:01:23.2]} 20... a4 {[%clk 0:01:53.9]} 21. Qe3
{[%clk 0:01:13]} 21... Nf7 {[%clk 0:01:42.2]} 22. Kh2 {[%clk 0:01:01.4]} 22...
h6 {[%clk 0:01:27.5]} 23. a3 {[%clk 0:01:01.4]} 23... Kh7 {[%clk 0:01:27]} 24.
Rb2 {[%clk 0:00:59.1]} 24... Ng5 {[%clk 0:00:51.9]} 25. Rfb1 {[%clk 0:00:54.4]}
25... f5 {[%clk 0:00:53]} 26. exf5 {[%clk 0:00:47.9]} 26... Bxf5 {[%clk
0:00:54.9]} 27. Bxf5+ {[%clk 0:00:38.3]} 27... Rxf5 {[%clk 0:00:56.8]} 28. Ne4
{[%clk 0:00:39.7]} 28... Nxe4 {[%clk 0:00:35.2]} 29. Qxe4 {[%clk 0:00:41.6]}
29... g6 {[%clk 0:00:37.1]} 30. Rb7 {[%clk 0:00:36.5]} 30... Rc8 {[%clk
0:00:29.1]} 31. Re1 {[%clk 0:00:29.2]} 31... Qd6 {[%clk 0:00:28.1]} 32. c4
{[%clk 0:00:30.1]} 32... h5 {[%clk 0:00:26.8]} 33. Re2 {[%clk 0:00:30]} 33...
Re8 {[%clk 0:00:24.2]} 34. g3 {[%clk 0:00:22.1]} 34... Re7 {[%clk 0:00:25.1]}
35. Rb8 {[%clk 0:00:19.8]} 35... Kg7 {[%clk 0:00:20.7]} 36. Kg2 {[%clk
0:00:20.4]} 36... Qf6 {[%clk 0:00:16.9]} 37. h4 {[%clk 0:00:18.4]} 37... Rf7
{[%clk 0:00:17.5]} 38. Re8 {[%clk 0:00:15.7]} 38... Rf2+ {[%clk 0:00:13.8]} 39.
Kh3 {[%clk 0:00:14.9]} 39... Rxe2 {[%clk 0:00:12.8]} 40. Qxe2 {[%clk 0:00:16.8]}
40... Re7 {[%clk 0:00:13.9]} 41. Rxe7+ {[%clk 0:00:17.2]} 41... Qxe7 {[%clk
0:00:15.8]} 42. Qe4 {[%clk 0:00:17.2]} 42... Qf6 {[%clk 0:00:15.7]} 43. Kg2
{[%clk 0:00:18.1]} 43... Kf7 {[%clk 0:00:14.4]} 44. Qf3 {[%clk 0:00:15.2]} 44...
Qf5 {[%clk 0:00:04.9]} 45. d6 {[%clk 0:00:10.9]} 45... cxd6 {[%clk 0:00:03.5]}
46. c7 {[%clk 0:00:10.2]} 1-0